[Event "EIRCC 2019"]
[Site "Tallinn"]
[Date "2019.12.06"]
[Round "11.35"]
[White "Van Foreest, Lucas"]
[Black "Haitin, Ilja"]
[Result "1-0"]
[ECO "B01"]
[WhiteElo "2399"]
[BlackElo "2232"]
[Annotator "NA"]
[PlyCount "25"]
[EventDate "2019.12.05"]
[EventType "swiss"]
[EventCountry "EST"]
[SourceTitle "playchess.com"]
[Source "ChessBase"]
[SourceQuality "1"]
[TimeControl "900+10"]

1. e4 {[%emt 0:00:00]} d5 {[%emt 0:00:00]} 2. exd5 {[%emt 0:00:01]} Qxd5 {[%emt 0:00:01]} 3. Nc3 {[%emt 0:00:00]} Qd6 {[%emt 0:00:00]} 4. d4 {[%emt 0:00:00]} Nf6 {[%emt 0:00:00]} 5. Nf3 {[%emt 0:00:00]} c6 {[%emt 0:00:00]} 6. Bc4 {[%emt 0:00:00]} Bf5 {[%emt 0:00:15]} 7. Ne5 {[%emt 0:00:05]} Bg6 {[%emt 0:00:45]} 8. Bf4 {[%emt 0:00:18]} Qb4 {[%emt 0:00:55]} 9. a3 {[%emt 0:00:28]} Qxb2 {[%emt 0:01:30]} 10. Na4 {[%emt 0:00:04]} Qxc2 {[%emt 0:00:13]} 11. Bxf7+ {[%emt 0:00:11]} Kd8 {[%emt 0:00:18]} 12. Bxg6 {[%emt 0:00:03]} Qxd1+ {[%emt 0:00:10]} 13. Rxd1 {[%emt 0:00:04]} 1-0

[Event "EIRCC 2019"]
[Site "Tallinn"]
[Date "2019.12.06"]
[Round "11.36"]
[White "Khakimov, Timur"]
[Black "Kourousis, Epaminondas"]
[Result "1/2-1/2"]
[ECO "A46"]
[WhiteElo "2253"]
[BlackElo "2392"]
[Annotator "NA"]
[PlyCount "97"]
[EventDate "2019.12.05"]
[EventType "swiss"]
[EventCountry "EST"]
[SourceTitle "playchess.com"]
[Source "ChessBase"]
[SourceQuality "1"]
[TimeControl "900+10"]

1. d4 {[%emt 0:00:00]} Nf6 {[%emt 0:00:00]} 2. Bg5 {[%emt 0:00:00]} e6 {[%emt 0:00:13]} 3. Nf3 {[%emt 0:00:00]} c5 {[%emt 0:00:03]} 4. e3 {[%emt 0:00:00]} b6 {[%emt 0:00:08]} 5. d5 {[%emt 0:00:09]} h6 {[%emt 0:00:10]} 6. Bxf6 {[%emt 0:00:03]} Qxf6 {[%emt 0:00:03]} 7. Nc3 {[%emt 0:00:04]} a6 {[%emt 0:00:20]} 8. a4 {[%emt 0:00:03]} Qd8 {[%emt 0:02:41]} 9. e4 {[%emt 0:00:08]} d6 {[%emt 0:01:37]} 10. dxe6 {[%emt 0:00:06]} Bxe6 {[%emt 0:00:08]} 11. Nd5 {[%emt 0:00:01]} Be7 {[%emt 0:01:35]} 12. Bc4 {[%emt 0:00:18]} O-O {[%emt 0:00:42]} 13. O-O {[%emt 0:00:03]} Nd7 {[%emt 0:00:56]} 14. Qd3 {[%emt 0:00:05]} Nf6 {[%emt 0:00:49]} 15. Rad1 {[%emt 0:01:05]} Nxd5 {[%emt 0:00:42]} 16. Bxd5 {[%emt 0:00:02]} Bxd5 {[%emt 0:00:16]} 17. Qxd5 {[%emt 0:00:11]} Qc7 {[%emt 0:01:40]} 18. Rfe1 {[%emt 0:01:17]} Rfd8 {[%emt 0:00:56]} 19. c3 {[%emt 0:01:30]} Bf6 {[%emt 0:01:22]} 20. g3 {[%emt 0:01:19]} b5 {[%emt 0:00:12]} 21. Ra1 {[%emt 0:04:24]} b4 {[%emt 0:00:41]} 22. cxb4 {[%emt 0:00:02]} Bxb2 {[%emt 0:00:07]} 23. Rab1 {[%emt 0:00:18]} Bf6 {[%emt 0:00:41]} 24. b5 {[%emt 0:00:05]} axb5 {[%emt 0:00:05]} 25. axb5 {[%emt 0:00:01]} Rab8 {[%emt 0:00:56]} 26. Nd2 {[%emt 0:00:35]} Bc3 {[%emt 0:00:13]} 27. Red1 {[%emt 0:00:01]} Bxd2 {[%emt 0:00:09]} 28. Rxd2 {[%emt 0:00:02]} Re8 {[%emt 0:00:17]} 29. Qc4 {[%emt 0:02:05]} Rb6 {[%emt 0:00:27]} 30. Rd5 {[%emt 0:00:01]} Qb7 {[%emt 0:00:42]} 31. Rb3 {[%emt 0:01:31]} Rb8 {[%emt 0:00:37]} 32. e5 {[%emt 0:00:13]} Rxb5 {[%emt 0:00:15]} 33. Rxb5 {[%emt 0:00:01]} Qxb5 {[%emt 0:00:01]} 34. Qxb5 {[%emt 0:00:03]} Rxb5 {[%emt 0:00:00]} 35. exd6 {[%emt 0:00:01]} Rb8 36. Rxc5 {[%emt 0:00:09]} Rd8 {[%emt 0:00:21]} 37. Rc6 {[%emt 0:02:07]} f6 {[%emt 0:00:01]} 38. Kg2 {[%emt 0:00:07]} Kf7 {[%emt 0:00:01]} 39. Rc7+ {[%emt 0:00:07]} Kf8 {[%emt 0:00:04]} 40. Rc6 {[%emt 0:00:24]} Kf7 {[%emt 0:00:00]} 41. Kf3 {[%emt 0:00:01]} Ke6 {[%emt 0:00:14]} 42. Rc7 {[%emt 0:00:27]} Rd7 {[%emt 0:00:45]} 43. Kf4 {[%emt 0:00:41]} Kxd6 {[%emt 0:00:16]} 44. Rxd7+ {[%emt 0:00:12]} Kxd7 {[%emt 0:00:01]} 45. Kf5 {[%emt 0:00:02]} Ke7 {[%emt 0:00:02]} 46. Kg6 {[%emt 0:00:02]} Kf8 {[%emt 0:00:02]} 47. g4 {[%emt 0:00:30]} Kg8 {[%emt 0:00:03]} 48. h4 {[%emt 0:00:06]} Kf8 {[%emt 0:00:06]} 49. g5 {[%emt 0:00:37]} 1/2-1/2

[Event "EIRCC 2019"]
[Site "Tallinn"]
[Date "2019.12.06"]
[Round "12.2"]
[White "Kulaots, Kaido"]
[Black "Riazantsev, Alexander"]
[Result "0-1"]
[ECO "B12"]
[WhiteElo "2544"]
[BlackElo "2594"]
[Annotator "ChessBase"]
[PlyCount "62"]
[EventDate "2019.12.05"]
[EventType "swiss"]
[EventCountry "EST"]
[SourceTitle "playchess.com"]
[Source "ChessBase"]
[SourceQuality "1"]
[TimeControl "900+10"]

1. e4 {[%emt 0:00:00]} c6 {[%emt 0:00:00]} 2. d4 {[%emt 0:00:00]} d5 {[%emt 0:00:00]} 3. e5 {[%emt 0:00:01]} c5 {[%emt 0:00:00]} 4. c4 {[%emt 0:00:14]} cxd4 {[%emt 0:00:11]} 5. Nf3 {[%emt 0:00:06]} e6 {[%emt 0:00:04]} 6. Nxd4 {[%emt 0:00:15]} a6 {[%emt 0:00:01]} 7. Nc3 {[%emt 0:02:39]} Ne7 {[%emt 0:00:01]} 8. Be3 {[%emt 0:04:17]} Nbc6 {[%emt 0:00:01]} 9. Nxc6 {[%emt 0:00:43]} bxc6 {[%emt 0:00:02]} 10. Bc5 {[%emt 0:00:45]} Ng6 {[%emt 0:03:27]} 11. Bxf8 {[%emt 0:00:03]} Rxf8 {[%emt 0:01:30]} 12. Qa4 {[%emt 0:01:10]} Bd7 {[%emt 0:01:34]} 13. O-O-O {[%emt 0:00:07]} Qg5+ {[%emt 0:00:40]} 14. Kb1 {[%emt 0:00:20]} Nxe5 {[%emt 0:00:34]} 15. Ka1 {[%emt 0:02:00]} Qf4 {[%emt 0:00:57]} 16. f3 {[%emt 0:00:01]} f6 {[%emt 0:01:48]} 17. Be2 {[%emt 0:00:04]} Qe3 {[%emt 0:02:37]} 18. Rhe1 {[%emt 0:01:01]} Rb8 {[%emt 0:00:00]} 19. Qc2 {[%emt 0:00:29]} Kf7 {[%emt 0:00:45]} 20. g3 {[%emt 0:01:00]} Nxf3 {[%emt 0:00:45]} 21. Rf1 {[%emt 0:01:46]} Nd4 {[%emt 0:00:18]} 22. Qxh7 {[%emt 0:00:42]} Nxe2 {[%emt 0:00:30]} 23. Qh5+ {[%emt 0:00:14]} Kg8 {[%emt 0:00:19]} 24. Nxe2 {[%emt 0:00:10]} e5 {[%emt 0:01:14]} 25. Nc3 {[%emt 0:00:18]} Be6 {[%emt 0:00:39]} 26. cxd5 {[%emt 0:00:21]} cxd5 {[%emt 0:00:00]} 27. Nxd5 {[%emt 0:00:01]} Bxd5 {[%emt 0:00:05]} 28. Rxd5 {[%emt 0:00:02]} Rxb2 {[%emt 0:00:18]} 29. Rxe5 {[%emt 0:00:41]} Qc3 {[%emt 0:00:34]} 30. Rc5 {[%emt 0:00:15]} Rb1+ {[%emt 0:00:05]} 31. Kxb1 {[%emt 0:00:02]} Rb8+ {[%emt 0:00:01]} 0-1

[Event "EIRCC 2019"]
[Site "Tallinn"]
[Date "2019.12.06"]
[Round "12.3"]
[White "Sargissian, Gabriel"]
[Black "Andriasian, Zaven"]
[Result "1-0"]
[ECO "D11"]
[WhiteElo "2715"]
[BlackElo "2633"]
[Annotator "ChessBase"]
[PlyCount "75"]
[EventDate "2019.12.05"]
[EventType "swiss"]
[EventCountry "EST"]
[SourceTitle "playchess.com"]
[Source "ChessBase"]
[SourceQuality "1"]
[TimeControl "900+10"]

1. d4 {[%emt 0:00:00]} d5 {[%emt 0:00:00]} 2. c4 {[%emt 0:00:00]} c6 {[%emt 0:00:00]} 3. Nf3 {[%emt 0:00:00]} Nf6 {[%emt 0:00:00]} 4. e3 {[%emt 0:00:00]} Bg4 {[%emt 0:00:00]} 5. h3 {[%emt 0:00:06]} Bxf3 {[%emt 0:00:00]} 6. Qxf3 {[%emt 0:00:03]} e6 {[%emt 0:00:01]} 7. a3 {[%emt 0:00:06]} Nbd7 {[%emt 0:00:08]} 8. Nc3 {[%emt 0:00:02]} Bd6 {[%emt 0:00:12]} 9. g4 {[%emt 0:00:02]} O-O {[%emt 0:04:30]} 10. g5 {[%emt 0:00:13]} Ne8 {[%emt 0:00:02]} 11. h4 {[%emt 0:00:44]} f5 {[%emt 0:00:27]} 12. Bd2 {[%emt 0:03:27]} Qe7 {[%emt 0:00:21]} 13. O-O-O {[%emt 0:00:54]} Bc7 {[%emt 0:00:46]} 14. Bd3 {[%emt 0:00:51]} Nd6 {[%emt 0:00:12]} 15. Qe2 {[%emt 0:00:26]} dxc4 {[%emt 0:01:31]} 16. Bxc4 {[%emt 0:00:02]} Nxc4 {[%emt 0:00:02]} 17. Qxc4 {[%emt 0:00:01]} Nb6 {[%emt 0:00:09]} 18. Qb3 {[%emt 0:00:10]} Bd6 {[%emt 0:00:34]} 19. f3 {[%emt 0:01:03]} Nd5 {[%emt 0:00:10]} 20. e4 {[%emt 0:00:17]} fxe4 {[%emt 0:01:15]} 21. fxe4 {[%emt 0:00:02]} Nxc3 {[%emt 0:00:21]} 22. Bxc3 {[%emt 0:00:01]} Qd7 {[%emt 0:00:01]} 23. g6 {[%emt 0:01:21]} h6 {[%emt 0:01:12]} 24. Rhf1 {[%emt 0:00:28]} Rxf1 {[%emt 0:01:43]} 25. Rxf1 {[%emt 0:00:01]} Rf8 {[%emt 0:00:01]} 26. Rxf8+ {[%emt 0:00:12]} Bxf8 {[%emt 0:00:24]} 27. Qd1 {[%emt 0:00:33]} Be7 {[%emt 0:00:17]} 28. h5 {[%emt 0:00:24]} Bd6 {[%emt 0:02:45]} 29. Qf3 {[%emt 0:00:16]} Qe8 {[%emt 0:00:19]} 30. d5 {[%emt 0:00:47]} cxd5 {[%emt 0:01:01]} 31. exd5 {[%emt 0:00:04]} e5 {[%emt 0:00:01]} 32. Qf5 {[%emt 0:00:54]} b6 {[%emt 0:00:01]} 33. Kd2 {[%emt 0:00:43]} a5 {[%emt 0:00:10]} 34. a4 {[%emt 0:01:28]} Bc7 {[%emt 0:00:24]} 35. Ke3 {[%emt 0:00:17]} Bd6 {[%emt 0:00:01]} 36. Qe6+ {[%emt 0:00:31]} Qxe6 {[%emt 0:00:28]} 37. dxe6 {[%emt 0:00:02]} Kf8 {[%emt 0:00:04]} 38. Ke4 {[%emt 0:00:06]} 1-0

[Event "EIRCC 2019"]
[Site "Tallinn"]
[Date "2019.12.06"]
[Round "12.4"]
[White "Yuffa, Daniil"]
[Black "Guseinov, Gadir"]
[Result "0-1"]
[ECO "E91"]
[WhiteElo "2587"]
[BlackElo "2691"]
[Annotator "ChessBase"]
[PlyCount "98"]
[EventDate "2019.12.05"]
[EventType "swiss"]
[EventCountry "EST"]
[SourceTitle "playchess.com"]
[Source "ChessBase"]
[SourceQuality "1"]
[TimeControl "900+10"]

1. d4 {[%emt 0:00:00]} Nf6 {[%emt 0:00:00]} 2. c4 {[%emt 0:00:00]} g6 {[%emt 0:00:00]} 3. Nc3 {[%emt 0:00:00]} Bg7 {[%emt 0:00:00]} 4. e4 {[%emt 0:00:00]} d6 {[%emt 0:00:05]} 5. Nf3 {[%emt 0:00:00]} O-O {[%emt 0:00:06]} 6. Be2 {[%emt 0:00:01]} c5 {[%emt 0:00:12]} 7. O-O {[%emt 0:00:23]} cxd4 {[%emt 0:00:02]} 8. Nxd4 {[%emt 0:00:01]} Nc6 {[%emt 0:00:01]} 9. Be3 {[%emt 0:00:23]} Bd7 {[%emt 0:00:03]} 10. Qd2 {[%emt 0:00:37]} Nxd4 {[%emt 0:00:08]} 11. Bxd4 {[%emt 0:00:06]} Bc6 {[%emt 0:00:11]} 12. Qc2 {[%emt 0:01:22]} a5 {[%emt 0:00:09]} 13. Rad1 {[%emt 0:00:04]} a4 {[%emt 0:01:00]} 14. c5 {[%emt 0:02:25]} Qa5 {[%emt 0:00:01]} 15. cxd6 {[%emt 0:00:11]} exd6 {[%emt 0:00:01]} 16. a3 {[%emt 0:00:10]} Rac8 {[%emt 0:01:09]} 17. f3 {[%emt 0:01:28]} Rfe8 {[%emt 0:00:06]} 18. Qd2 {[%emt 0:00:12]} d5 {[%emt 0:00:26]} 19. Nxd5 {[%emt 0:00:39]} Qxd2 {[%emt 0:00:26]} 20. Nxf6+ {[%emt 0:00:10]} Bxf6 {[%emt 0:00:13]} 21. Rxd2 {[%emt 0:00:01]} Red8 {[%emt 0:02:33]} 22. Be3 {[%emt 0:02:06]} Rxd2 {[%emt 0:00:07]} 23. Bxd2 {[%emt 0:00:01]} Bxb2 {[%emt 0:01:21]} 24. Bb4 {[%emt 0:00:03]} Bd7 {[%emt 0:01:06]} 25. Rd1 {[%emt 0:01:04]} Be6 {[%emt 0:00:01]} 26. Bb5 {[%emt 0:01:06]} Bb3 {[%emt 0:00:52]} 27. Rd7 {[%emt 0:00:07]} g5 {[%emt 0:00:11]} 28. Rxb7 {[%emt 0:02:09]} h5 {[%emt 0:02:31]} 29. Bd3 {[%emt 0:01:02]} Bd4+ {[%emt 0:02:30]} 30. Kf1 {[%emt 0:00:04]} Rc1+ {[%emt 0:00:01]} 31. Ke2 {[%emt 0:00:01]} Rg1 {[%emt 0:00:02]} 32. Rb8+ {[%emt 0:00:31]} Kg7 {[%emt 0:00:00]} 33. Rd8 {[%emt 0:00:28]} Rxg2+ {[%emt 0:00:15]} 34. Kf1 {[%emt 0:00:26]} Rg1+ {[%emt 0:00:18]} 35. Ke2 {[%emt 0:00:01]} Be5 {[%emt 0:00:30]} 36. Bf8+ {[%emt 0:01:44]} Kf6 {[%emt 0:00:12]} 37. Re8 {[%emt 0:00:10]} Be6 {[%emt 0:00:36]} 38. Be7+ {[%emt 0:00:10]} Kg7 {[%emt 0:00:01]} 39. Kf2 {[%emt 0:00:14]} Bd4+ {[%emt 0:00:23]} 40. Ke2 {[%emt 0:00:01]} Rg2+ {[%emt 0:00:03]} 41. Ke1 {[%emt 0:00:14]} Be5 {[%emt 0:01:52]} 42. Bf8+ {[%emt 0:00:27]} Kh7 {[%emt 0:00:09]} 43. Be7 {[%emt 0:00:28]} h4 {[%emt 0:00:43]} 44. Bd6 {[%emt 0:00:52]} Bc3+ {[%emt 0:00:23]} 45. Kf1 {[%emt 0:00:07]} Rd2 {[%emt 0:00:01]} 46. Be7 {[%emt 0:00:39]} Bh3+ {[%emt 0:00:18]} 47. Ke1 {[%emt 0:00:03]} Rxd3+ {[%emt 0:00:01]} 48. Ke2 {[%emt 0:00:01]} Rd2+ {[%emt 0:00:10]} 49. Ke3 {[%emt 0:00:01]} Rxh2 {[%emt 0:00:04]} 0-1

[Event "EIRCC 2019"]
[Site "Tallinn"]
[Date "2019.12.06"]
[Round "12.6"]
[White "Lysyj, Igor"]
[Black "Saric, Ante"]
[Result "1-0"]
[ECO "E16"]
[WhiteElo "2599"]
[BlackElo "2538"]
[Annotator "ChessBase"]
[PlyCount "107"]
[EventDate "2019.12.05"]
[EventType "swiss"]
[EventCountry "EST"]
[SourceTitle "playchess.com"]
[Source "ChessBase"]
[SourceQuality "1"]
[TimeControl "900+10"]

1. d4 {[%emt 0:00:00]} Nf6 {[%emt 0:00:00]} 2. c4 {[%emt 0:00:00]} e6 {[%emt 0:00:00]} 3. Nf3 {[%emt 0:00:00]} b6 {[%emt 0:00:00]} 4. g3 {[%emt 0:00:00]} Bb7 {[%emt 0:00:00]} 5. Bg2 {[%emt 0:00:00]} Bb4+ {[%emt 0:00:00]} 6. Bd2 {[%emt 0:00:00]} Be7 {[%emt 0:00:00]} 7. O-O {[%emt 0:00:20]} c6 {[%emt 0:00:00]} 8. Nc3 {[%emt 0:00:11]} d5 {[%emt 0:00:00]} 9. Qb3 {[%emt 0:00:08]} O-O {[%emt 0:00:16]} 10. Bf4 {[%emt 0:00:09]} Nbd7 {[%emt 0:00:17]} 11. cxd5 {[%emt 0:00:02]} cxd5 {[%emt 0:03:00]} 12. Rfc1 {[%emt 0:00:03]} Nh5 {[%emt 0:01:33]} 13. Bd2 {[%emt 0:00:10]} Nhf6 {[%emt 0:00:29]} 14. a4 {[%emt 0:00:06]} a6 {[%emt 0:00:31]} 15. a5 {[%emt 0:00:08]} b5 {[%emt 0:00:14]} 16. Na2 {[%emt 0:00:32]} Ne4 {[%emt 0:00:53]} 17. Bb4 {[%emt 0:00:07]} Nd6 {[%emt 0:00:09]} 18. Qa3 {[%emt 0:01:51]} Nb8 {[%emt 0:01:34]} 19. Bc5 {[%emt 0:00:14]} Nc6 {[%emt 0:00:25]} 20. Nb4 {[%emt 0:00:09]} Rc8 {[%emt 0:02:19]} 21. Nxc6 {[%emt 0:00:14]} Rxc6 {[%emt 0:00:48]} 22. Ne5 {[%emt 0:00:22]} Rc8 {[%emt 0:00:34]} 23. e3 {[%emt 0:00:31]} f6 {[%emt 0:00:26]} 24. Nd3 {[%emt 0:00:11]} Rf7 {[%emt 0:00:18]} 25. b3 {[%emt 0:00:24]} Ne4 {[%emt 0:01:14]} 26. Bxe7 {[%emt 0:03:15]} Rxe7 {[%emt 0:00:01]} 27. Rxc8 {[%emt 0:00:34]} Bxc8 {[%emt 0:00:01]} 28. Rc1 {[%emt 0:00:04]} Rc7 {[%emt 0:00:15]} 29. Rxc7 {[%emt 0:02:38]} Qxc7 {[%emt 0:00:01]} 30. Bxe4 {[%emt 0:00:04]} dxe4 {[%emt 0:00:01]} 31. Nc5 {[%emt 0:00:01]} Qc6 {[%emt 0:00:34]} 32. h4 {[%emt 0:00:26]} h6 {[%emt 0:00:12]} 33. Qb2 {[%emt 0:00:28]} e5 {[%emt 0:00:34]} 34. b4 {[%emt 0:00:31]} Qd5 {[%emt 0:00:18]} 35. dxe5 {[%emt 0:00:59]} Qd1+ {[%emt 0:00:29]} 36. Kh2 {[%emt 0:00:07]} fxe5 {[%emt 0:02:04]} 37. Qb3+ {[%emt 0:01:38]} Qxb3 {[%emt 0:00:01]} 38. Nxb3 {[%emt 0:00:01]} Kf7 {[%emt 0:00:08]} 39. Nc5 {[%emt 0:00:02]} Ke7 {[%emt 0:00:08]} 40. Nxe4 {[%emt 0:00:03]} Ke6 {[%emt 0:00:02]} 41. Nc3 {[%emt 0:00:04]} Bb7 {[%emt 0:00:06]} 42. e4 {[%emt 0:00:10]} g5 {[%emt 0:00:08]} 43. f3 {[%emt 0:00:15]} Kf6 {[%emt 0:00:10]} 44. Kg2 {[%emt 0:00:25]} Kg6 {[%emt 0:00:30]} 45. Nd1 {[%emt 0:01:10]} g4 {[%emt 0:00:56]} 46. Nf2 {[%emt 0:00:09]} gxf3+ {[%emt 0:00:26]} 47. Kxf3 {[%emt 0:00:02]} h5 {[%emt 0:00:01]} 48. g4 {[%emt 0:00:17]} hxg4+ {[%emt 0:00:08]} 49. Nxg4 {[%emt 0:00:05]} Kh5 {[%emt 0:00:01]} 50. Nxe5 {[%emt 0:00:03]} Kxh4 {[%emt 0:00:01]} 51. Kf4 {[%emt 0:00:07]} Kh5 {[%emt 0:00:12]} 52. Nd7 {[%emt 0:00:15]} Kg6 {[%emt 0:00:04]} 53. Nc5 {[%emt 0:00:05]} Bc8 {[%emt 0:00:01]} 54. Ke5 {[%emt 0:00:01]} 1-0

[Event "EIRCC 2019"]
[Site "Tallinn"]
[Date "2019.12.06"]
[Round "12.7"]
[White "Esipenko, Andrey"]
[Black "Nguyen, Thai Dai Van"]
[Result "1-0"]
[ECO "E06"]
[WhiteElo "2590"]
[BlackElo "2364"]
[Annotator "ChessBase"]
[PlyCount "101"]
[EventDate "2019.12.05"]
[EventType "swiss"]
[EventCountry "EST"]
[SourceTitle "playchess.com"]
[Source "ChessBase"]
[SourceQuality "1"]
[TimeControl "900+10"]

1. d4 {[%emt 0:00:00]} Nf6 {[%emt 0:00:00]} 2. c4 {[%emt 0:00:00]} e6 {[%emt 0:00:00]} 3. Nf3 {[%emt 0:00:00]} d5 {[%emt 0:00:00]} 4. g3 {[%emt 0:00:00]} Be7 {[%emt 0:00:05]} 5. Bg2 {[%emt 0:00:00]} O-O {[%emt 0:00:02]} 6. O-O {[%emt 0:00:00]} dxc4 {[%emt 0:00:02]} 7. Qc2 {[%emt 0:00:01]} b5 {[%emt 0:00:18]} 8. a4 {[%emt 0:00:04]} b4 {[%emt 0:00:02]} 9. Nfd2 {[%emt 0:00:02]} Nd5 {[%emt 0:00:01]} 10. Nxc4 {[%emt 0:00:30]} c5 {[%emt 0:00:02]} 11. dxc5 {[%emt 0:00:32]} Ba6 {[%emt 0:00:03]} 12. e4 {[%emt 0:02:05]} Nf6 {[%emt 0:00:47]} 13. Rd1 {[%emt 0:01:20]} Nbd7 {[%emt 0:08:38]} 14. b3 {[%emt 0:06:14]} Bxc5 {[%emt 0:00:53]} 15. Be3 {[%emt 0:01:49]} Bxc4 {[%emt 0:00:33]} 16. Qxc4 {[%emt 0:00:45]} Bxe3 {[%emt 0:00:06]} 17. fxe3 {[%emt 0:00:02]} Qb6 {[%emt 0:00:29]} 18. Qd4 {[%emt 0:00:12]} Nc5 {[%emt 0:02:45]} 19. a5 {[%emt 0:00:01]} Qc7 {[%emt 0:00:01]} 20. Qxb4 {[%emt 0:00:44]} Rab8 {[%emt 0:00:05]} 21. Qc4 {[%emt 0:00:02]} Qe5 {[%emt 0:00:18]} 22. Nd2 {[%emt 0:00:49]} Qg5 {[%emt 0:01:29]} 23. Re1 {[%emt 0:00:09]} Ncd7 {[%emt 0:00:34]} 24. Qd4 {[%emt 0:01:05]} a6 {[%emt 0:00:25]} 25. Nf3 {[%emt 0:00:01]} Qb5 {[%emt 0:00:02]} 26. Bf1 {[%emt 0:01:18]} Qb7 {[%emt 0:00:17]} 27. Rad1 {[%emt 0:00:04]} e5 {[%emt 0:01:11]} 28. Nxe5 {[%emt 0:00:18]} Nxe5 {[%emt 0:00:01]} 29. Qxe5 {[%emt 0:00:02]} Rfe8 {[%emt 0:00:01]} 30. Qd6 {[%emt 0:00:20]} Nxe4 {[%emt 0:00:17]} 31. Qxa6 {[%emt 0:00:05]} Qxb3 {[%emt 0:00:06]} 32. Qc4 {[%emt 0:00:36]} Qa3 {[%emt 0:00:27]} 33. a6 {[%emt 0:00:09]} Ng5 {[%emt 0:00:09]} 34. Bg2 {[%emt 0:00:01]} Qe7 {[%emt 0:00:15]} 35. Qd4 {[%emt 0:00:16]} Ne6 {[%emt 0:00:06]} 36. Qd7 {[%emt 0:00:05]} Nc5 {[%emt 0:00:12]} 37. Qxe7 {[%emt 0:00:35]} Rxe7 {[%emt 0:00:01]} 38. Rd6 {[%emt 0:00:02]} Ra7 {[%emt 0:00:20]} 39. Bf1 {[%emt 0:00:02]} g6 {[%emt 0:00:06]} 40. Rc1 {[%emt 0:00:14]} Ne4 {[%emt 0:00:09]} 41. Rdc6 {[%emt 0:00:13]} Rba8 {[%emt 0:00:18]} 42. Bg2 {[%emt 0:00:32]} f5 {[%emt 0:00:06]} 43. Bxe4 {[%emt 0:00:07]} fxe4 {[%emt 0:00:01]} 44. Rc8+ {[%emt 0:00:05]} Rxc8 {[%emt 0:00:01]} 45. Rxc8+ {[%emt 0:00:02]} Kg7 {[%emt 0:00:24]} 46. Rc6 {[%emt 0:00:02]} Kh6 {[%emt 0:00:01]} 47. Kg2 {[%emt 0:00:08]} Kg5 {[%emt 0:00:02]} 48. Rc5+ {[%emt 0:00:06]} Kf6 {[%emt 0:00:05]} 49. Ra5 {[%emt 0:00:01]} Ke6 {[%emt 0:00:16]} 50. g4 {[%emt 0:00:15]} g5 {[%emt 0:00:18]} 51. h4 {[%emt 0:00:18] Kd5} 1-0

[Event "EIRCC 2019"]
[Site "Tallinn"]
[Date "2019.12.06"]
[Round "12.9"]
[White "Aleksandrov, Aleksej"]
[Black "Seeman, Tarvo"]
[Result "1-0"]
[ECO "E71"]
[WhiteElo "2576"]
[BlackElo "2325"]
[Annotator "ChessBase"]
[PlyCount "69"]
[EventDate "2019.12.05"]
[EventType "swiss"]
[EventCountry "EST"]
[SourceTitle "playchess.com"]
[Source "ChessBase"]
[SourceQuality "1"]
[TimeControl "900+10"]

1. d4 {[%emt 0:00:36]} Nf6 {[%emt 0:00:00]} 2. c4 {[%emt 0:00:00]} g6 {[%emt 0:00:00]} 3. Nc3 {[%emt 0:00:01]} Bg7 {[%emt 0:00:00]} 4. e4 {[%emt 0:00:01]} d6 {[%emt 0:00:00]} 5. h3 {[%emt 0:00:01]} O-O {[%emt 0:00:23]} 6. Be3 {[%emt 0:00:02]} Na6 {[%emt 0:00:45]} 7. Nf3 {[%emt 0:00:21]} e5 {[%emt 0:00:28]} 8. d5 {[%emt 0:00:02]} Nh5 {[%emt 0:01:48]} 9. a3 {[%emt 0:03:24]} c5 {[%emt 0:03:29]} 10. g3 {[%emt 0:01:49]} Qe7 {[%emt 0:02:29]} 11. Nd2 {[%emt 0:00:59]} Bd7 {[%emt 0:01:27]} 12. Be2 {[%emt 0:00:11]} Nf6 {[%emt 0:00:28]} 13. g4 {[%emt 0:00:02]} Rab8 {[%emt 0:01:37]} 14. h4 {[%emt 0:00:40]} Ne8 {[%emt 0:00:38]} 15. h5 {[%emt 0:01:04]} Bf6 {[%emt 0:00:13]} 16. Nf1 {[%emt 0:02:03]} Bg5 {[%emt 0:00:03]} 17. Qd2 {[%emt 0:00:01]} Bxe3 {[%emt 0:01:01]} 18. Qxe3 {[%emt 0:00:02]} Qf6 {[%emt 0:00:29]} 19. Qh6 {[%emt 0:01:42]} g5 {[%emt 0:00:14]} 20. Qxf6 {[%emt 0:00:02]} Nxf6 {[%emt 0:00:01]} 21. Ne3 {[%emt 0:00:05]} h6 {[%emt 0:00:32]} 22. Kd2 {[%emt 0:00:03]} Rfc8 {[%emt 0:00:07]} 23. Rhb1 {[%emt 0:00:07]} Kf8 {[%emt 0:00:22]} 24. b4 {[%emt 0:00:07]} Ke7 {[%emt 0:00:25]} 25. f3 {[%emt 0:00:03]} Ne8 {[%emt 0:00:28]} 26. Bd1 {[%emt 0:01:10]} Kd8 {[%emt 0:01:12]} 27. Ba4 {[%emt 0:00:41]} Bxa4 {[%emt 0:00:04]} 28. Nxa4 {[%emt 0:00:02]} Ng7 {[%emt 0:00:42]} 29. b5 {[%emt 0:00:12]} Nc7 {[%emt 0:00:02]} 30. b6 {[%emt 0:00:01]} axb6 {[%emt 0:00:04]} 31. Nxb6 {[%emt 0:00:01]} Na6 {[%emt 0:00:08]} 32. Nxc8 {[%emt 0:00:04]} Kxc8 {[%emt 0:00:01]} 33. Rb6 {[%emt 0:00:25]} Kc7 {[%emt 0:00:03]} 34. Rab1 {[%emt 0:00:01]} f6 {[%emt 0:00:02]} 35. R1b5 {[%emt 0:00:16]} 1-0

[Event "EIRCC 2019"]
[Site "Tallinn"]
[Date "2019.12.06"]
[Round "12.10"]
[White "Stupak, Kirill"]
[Black "Studer, Noel"]
[Result "1-0"]
[ECO "D02"]
[WhiteElo "2552"]
[BlackElo "2405"]
[Annotator "ChessBase"]
[PlyCount "45"]
[EventDate "2019.12.05"]
[EventType "swiss"]
[EventCountry "EST"]
[SourceTitle "playchess.com"]
[Source "ChessBase"]
[SourceQuality "1"]
[TimeControl "900+10"]

1. d4 {[%emt 0:00:00]} d5 {[%emt 0:00:00]} 2. Nf3 {[%emt 0:00:00]} Nf6 {[%emt 0:00:00]} 3. g3 {[%emt 0:00:00]} c5 {[%emt 0:00:00]} 4. c4 {[%emt 0:00:06]} dxc4 {[%emt 0:01:31]} 5. Qa4+ {[%emt 0:00:01]} Nc6 {[%emt 0:00:01]} 6. dxc5 {[%emt 0:00:01]} e6 {[%emt 0:03:49]} 7. Qxc4 {[%emt 0:02:29]} Qa5+ {[%emt 0:00:01]} 8. Nc3 {[%emt 0:00:06]} Qxc5 {[%emt 0:00:40]} 9. Qa4 {[%emt 0:02:47]} Bd7 {[%emt 0:00:26]} 10. Bg2 {[%emt 0:00:24]} Nb4 {[%emt 0:00:59]} 11. Qb3 {[%emt 0:00:30]} Bc6 {[%emt 0:00:32]} 12. a3 {[%emt 0:03:46]} Nbd5 {[%emt 0:00:25]} 13. Ne5 {[%emt 0:00:01]} Nxc3 {[%emt 0:04:01]} 14. Nxc6 {[%emt 0:00:02]} bxc6 {[%emt 0:03:46]} 15. Be3 {[%emt 0:03:10]} Qd6 {[%emt 0:00:35]} 16. Qb7 {[%emt 0:00:04]} Rd8 {[%emt 0:00:24]} 17. Bxc6+ {[%emt 0:00:50]} Nd7 {[%emt 0:00:13]} 18. bxc3 {[%emt 0:00:01]} Qe5 {[%emt 0:00:18]} 19. O-O {[%emt 0:01:06]} Bd6 {[%emt 0:00:12]} 20. Bf4 {[%emt 0:00:22]} Qc5 {[%emt 0:00:05]} 21. Bxd6 {[%emt 0:00:01]} Qxd6 {[%emt 0:00:01]} 22. Rfd1 {[%emt 0:00:01]} Qe7 {[%emt 0:00:04]} 23. Rxd7 {[%emt 0:00:11]} 1-0